bitfinex/quotes_SOLUSD_20250726
["timestamp","ask_amount","ask_price","bid_price","bid_amount"]
[1753490801532,5.36975414,186.23,186.19,0.56]
[1753490801898,6.04975414,186.23,186.2,37.34]
[1753490802822,9.82656083,186.26,186.21,4.33772158]
[1753490803009,0.68,186.25,186.21,4.33772158]
[1753490803335,0.68,186.25,186.21,0.56]
[1753490803534,0.68,186.24,186.2,41.67772158]
[1753490804028,5.36917049,186.25,186.2,41.11772158]
[1753490804331,0.68,186.24,186.2,37.9]
[1753490804627,4.45772158,186.24,186.2,37.34]
[1753490804820,3.77772158,186.23,186.2,37.34]
[1753490805028,0.68,186.22,186.2,37.34]
[1753490808924,5.36912751,186.25,186.21,0.56]
[1753490809128,9.82684909,186.25,186.21,0.56]
[1753490809625,0.68,186.24,186.2,37.34]
[1753490810337,4.45772158,186.23,186.2,37.34]
[1753490810709,0.68,186.23,186.2,37.34]
[1753490814015,4.45772158,186.23,186.2,37.34]
[1753490814827,0.68,186.23,186.2,37.34]
[1753490815235,4.45772158,186.22,186.2,37.34]
[1753490816130,0.68,186.22,186.2,37.34]
[1753490817741,6.04999437,186.22,186.2,37.34]
[1753490818322,0.68,186.21,186.2,37.34]
[1753490819141,5.36999437,186.22,186.2,37.34]
[1753490821924,3.77772158,186.16,186.15,37.34]
[1753490822246,4.45772158,186.16,186.15,37.34]
[1753490822417,9.82944482,186.16,186.15,37.34]
[1753490822922,8.47155117,186.16,186.15,37.34]
[1753490824552,6.05172324,186.16,186.12,124.74]
[1753490824749,3.78148338,186.15,186.12,125.3]
[1753490824928,3.78148338,186.15,186.12,37.9]
[1753490825133,3.78148338,186.15,186.12,37.34]
[1753490825333,4.46148338,186.15,186.12,37.34]
[1753490826058,9.83376972,186.15,186.12,37.34]
[1753490826257,3.78148338,186.14,186.12,37.34]
[1753490827053,3.78148338,186.14,186.1,0.56]
[1753490827253,3.78148338,186.14,186.1,37.96]
[1753490827254,4.46148338,186.14,186.1,37.96]
[1753490828158,5.37258905,186.13,186.1,37.96]
[1753490828733,6.07258905,186.13,186.1,37.4]
[1753490831359,9.85407243,186.13,186.1,37.4]
[1753490833053,3.78148338,186.12,186.09,37.96]
[1753490833562,3.78148338,186.11,186.09,37.96]
[1753490833963,6.07258905,186.13,186.09,37.96]
[1753490834161,3.78148338,186.11,186.09,37.96]
[1753490834962,9.15470325,186.11,186.09,37.96]
[1753490835139,9.15438065,186.12,186.09,37.96]
[1753490837361,9.15470989,186.11,186.09,37.96]
[1753490840575,9.15436109,186.12,186.09,37.96]
[1753490841642,3.78148338,186.11,186.09,37.96]
[1753490842146,3.78148338,186.1,186.09,37.96]
[1753490842665,3.78148338,186.11,186.09,37.96]
[1753490842870,5.37287771,186.12,186.09,37.96]
[1753490843074,3.78148338,186.11,186.09,37.96]
[1753490844869,5.37337857,186.11,186.09,37.96]
[1753490845068,9.15486195,186.11,186.09,37.96]
[1753490845369,5.37337857,186.11,186.09,37.96]
[1753490845540,9.15486195,186.11,186.09,37.96]
[1753490845746,3.78148338,186.1,186.09,0.56]
[1753490846070,9.15486195,186.11,186.09,0.56]
[1753490846746,7.79454928,186.11,186.09,0.56]
[1753490847369,6.07265818,186.13,186.09,0.56]
[1753490848848,6.07265818,186.13,186.09,2.98117071]
[1753490849053,6.07265818,186.13,186.1,37.38]
[1753490850084,0.7,186.13,186.1,37.38]
[1753490850372,0.7,186.13,186.1,39.80117071]
[1753490850893,0.7,186.13,186.1,37.38]
[1753490852162,6.07262841,186.13,186.1,37.38]
[1753490853966,2.42117071,186.11,186.09,0.56]
[1753490854149,2.42117071,186.1,186.09,0.56]
[1753490855975,7.79462584,186.1,186.09,0.56]
[1753490856196,5.37345513,186.1,186.09,0.56]
[1753490859769,9.15641118,186.1,186.09,0.56]
[1753490859969,5.37345513,186.1,186.09,0.56]
[1753490860858,5.37287771,186.12,186.09,0.56]
[1753490871399,9.15583376,186.12,186.09,0.56]
[1753490874070,3.78295605,186.11,186.09,0.56]
[1753490875000,5.37287771,186.12,186.09,0.56]
[1753490875180,3.78295605,186.11,186.09,0.56]
[1753490875490,5.37287771,186.12,186.09,0.56]
[1753490875688,3.78295605,186.11,186.09,0.56]
[1753490876389,5.37287771,186.12,186.09,0.56]
[1753490876567,5.37345513,186.1,186.09,0.56]
[1753490883193,0.7,186.13,186.09,0.56]
[1753490883499,6.07260127,186.13,186.1,40.35853723]
[1753490883673,6.07260127,186.13,186.1,39.82119172]
[1753490884306,6.07260127,186.13,186.1,37.4]
[1753490886198,6.07260127,186.13,186.09,2.98119172]
[1753490886498,0.7,186.13,186.11,37.4]
[1753490897703,0.7,186.13,186.1,127.18119172]
[1753490898208,0.7,186.13,186.1,124.76]
[1753490898419,0.7,186.13,186.1,127.18119172]
[1753490899906,0.7,186.13,186.11,2.42119172]
[1753490900336,0.7,186.13,186.1,127.18119172]
[1753490901036,0.7,186.13,186.11,2.42119172]
[1753490901235,0.7,186.13,186.12,56.56587569]
[1753490901627,0.7,186.13,186.12,143.96587569]
[1753490904112,0.7,186.13,186.12,141.54468397]
[1753490904311,0.7,186.13,186.12,143.96587569]
[1753490904512,0.7,186.13,186.12,104.18468397]
[1753490904743,0.7,186.13,186.12,141.54468397]
[1753490908232,0.7,186.13,186.12,143.96587569]
[1753490911416,0.7,186.13,186.12,106.60587569]
[1753490911743,0.7,186.13,186.12,141.54468397]
[1753490911938,0.7,186.13,186.09,0.56]
[1753490912139,2.42119172,186.1,186.09,0.56]
[1753490912737,3.784324,186.1,186.09,0.56]
[1753490913932,9.15777913,186.1,186.09,0.56]
[1753490914137,13.14240227,186.1,186.09,0.56]
[1753490916520,16.92672627,186.1,186.09,0.56]
[1753490917129,30.36036409,186.1,186.01,154.88884228]
[1753490917337,3.784324,186.05,186.01,154.88884228]
[1753490917518,3.784324,186.04,186.01,154.88884228]
[1753490918052,9.15959009,186.04,186.01,154.88884228]
[1753490918768,5.3748444,186.06,186.01,154.88884228]
[1753490918922,3.784324,186.05,186.01,154.88884228]
[1753490919319,3.784324,186.04,186.01,30.10884228]
[1753490920156,13.43552405,186.08,186.01,30.10884228]
[1753490920451,3.784324,186.04,186.01,30.10884228]
[1753490920923,13.43552405,186.08,186.01,30.10884228]
[1753490921126,3.784324,186.04,186.01,30.10884228]
[1753490922146,9.15961889,186.04,186.01,30.10884228]
[1753490922653,3.784324,186.03,186.01,30.10884228]
[1753490923234,9.15961889,186.04,186.01,30.10884228]
[1753490923441,3.784324,186.03,186.01,30.10884228]
[1753490923831,3.784324,186.03,186.01,4.10884228]
[1753490924456,13.43552405,186.08,186.01,4.10884228]
[1753490924640,3.784324,186.03,186.01,4.10884228]
[1753490927055,9.15995508,186.03,186.01,4.10884228]
[1753490927737,3.784324,186.02,186.01,4.10884228]
[1753490929235,9.16009004,186.02,186.01,4.10884228]
[1753490933369,3.784324,186.03,186.01,4.10884228]
[1753490934772,2.42323128,186.03,186.01,4.10884228]
[1753490935848,7.7981305,186.05,186.01,4.10884228]
[1753490936365,2.42323128,186.04,186.01,4.10884228]
[1753490937063,7.79854041,186.04,186.01,4.10884228]
[1753490937470,7.79814461,186.05,186.01,4.10884228]
[1753490938271,52.44479641,186.09,186.01,4.10884228]
[1753490938272,7.7978928,186.06,186.01,4.10884228]
[1753490938662,2.42323128,186.05,186.01,4.10884228]
[1753490939276,7.79815566,186.05,186.01,4.10884228]
[1753490939879,2.42323128,186.05,186.01,4.10884228]
[1753490940273,7.7978897,186.06,186.01,4.10884228]
[1753490940480,2.42323128,186.05,186.01,4.10884228]
[1753490941295,7.79815318,186.05,186.01,4.10884228]
[1753490942848,2.42323128,186.05,186.01,4.10884228]
[1753490946280,7.79821665,186.05,186.01,4.10884228]
[1753490947182,5.37403267,186.08,186.01,4.10884228]
[1753490947357,2.42323128,186.05,186.01,4.10884228]
[1753490948458,7.79822717,186.05,186.01,4.10884228]
[1753490949561,2.42323128,186.04,186.01,4.10884228]
[1753490950457,5.37499589,186.05,186.01,4.10884228]
[1753490950770,2.42323128,186.04,186.01,4.10884228]
[1753490950973,7.79851954,186.04,186.01,4.10884228]
[1753490951155,2.42323128,186.02,186.01,4.10884228]
[1753490952755,7.79899732,186.02,186.01,4.10884228]
[1753490953164,7.79899732,186.02,186.01,2.66884228]
[1753490953490,11.77096813,186.02,186.01,2.66884228]
[1753490953660,7.79899732,186.02,186.01,2.66884228]
[1753490954078,11.7709826,186.02,186.01,2.66884228]
[1753490954558,25.21039771,186.02,185.95,26.0]
[1753490954758,2.42323128,185.96,185.95,26.0]
[1753490954965,2.42323128,185.97,185.95,26.0]
[1753490955766,7.80063819,185.97,185.92,37.44]
[1753490956079,7.80063819,185.97,185.92,63.44]
[1753490956281,2.42323128,185.97,185.91,2.42323128]
[1753490956574,7.80016009,185.98,185.92,2.42323128]
[1753490956776,7.80016009,185.98,185.91,37.44]
[1753490956969,2.42323128,185.97,185.91,39.86323128]
[1753490957877,7.80051124,185.97,185.91,39.86323128]
[1753490959183,7.79957536,186.0,185.94,28.42323128]
[1753490959488,7.79957536,186.0,185.95,37.44]
[1753490960161,2.42323128,185.99,185.95,37.44]
[1753490961677,7.8002387,185.98,185.95,37.44]
[1753490963394,7.79993138,185.99,185.95,37.44]
[1753490964379,18.81658624,186.01,185.95,37.44]
[1753490964580,2.42323128,185.99,185.95,37.44]
[1753490964793,3.78802505,185.99,185.95,37.44]
[1753490965696,8.16484108,185.99,185.95,37.44]
[1753490965877,5.37681603,185.99,185.95,37.44]
[1753490967474,9.16484108,185.99,185.95,37.44]
[1753490968193,9.16484108,185.99,185.95,36.94]
[1753490968603,3.78802505,185.99,185.95,36.94]
[1753490969684,5.37692224,185.98,185.95,36.94]
[1753490971202,5.37692224,185.98,185.93,128.64802505]
[1753490971904,3.78802505,185.99,185.93,134.02638112]
[1753490972304,3.78802505,186.0,185.94,22.12860902]
[1753490972680,5.37576604,186.02,185.94,22.12860902]
[1753490973072,3.78802505,185.99,185.94,18.34058397]
[1753490973302,3.78802505,185.99,185.94,105.74058397]
[1753490973514,9.16482107,185.99,185.94,105.74058397]
[1753490975008,5.37679602,185.99,185.94,109.52860902]
[1753490975314,9.16482107,185.99,185.94,105.74058397]
[1753490975784,5.37679602,185.99,185.94,109.52860902]
[1753490977814,5.37679602,185.99,185.95,37.44]
[1753490978998,3.78802505,186.0,185.95,37.44]
[1753490979199,3.78802505,185.99,185.95,37.44]
[1753490980220,9.16482772,185.99,185.95,37.44]
[1753490982319,3.78802505,185.98,185.94,124.82]
[1753490982698,9.16482772,185.99,185.94,124.82]
[1753490983497,3.78802505,185.97,185.94,87.4]
[1753490983702,3.78802505,185.95,185.94,87.4]
[1753490983925,3.78802505,185.95,185.92,37.42]
[1753490984626,9.16609695,185.95,185.92,37.42]
[1753490986903,7.80329949,185.95,185.92,37.42]
[1753490987832,2.42522759,185.96,185.92,37.42]
[1753490988934,5.37692224,185.98,185.92,37.42]
[1753490989115,2.42522759,185.96,185.92,37.42]
[1753490989626,5.37778972,185.95,185.92,37.42]
[1753490993724,2.42522759,185.96,185.92,37.42]
[1753490993926,7.80280018,185.96,185.92,37.42]
[1753490997039,5.37692224,185.98,185.92,37.42]
[1753490997224,2.42522759,185.97,185.92,39.84522759]
[1753490997735,2.42522759,185.97,185.92,37.42]
[1753490999039,5.37750053,185.96,185.92,37.42]
[1753491000820,5.37750053,185.96,185.92,39.84522759]
[1753491001221,5.37750053,185.96,185.92,37.42]
[1753491001827,5.37750053,185.96,185.92,39.84522759]
[1753491002141,5.37750053,185.96,185.92,37.42]
[1753491004857,13.44158288,185.99,185.92,37.42]
[1753491005154,2.42522759,185.97,185.92,37.42]
[1753491005722,2.42522759,185.96,185.92,37.42]
[1753491005939,5.37778972,185.95,185.92,37.42]
[1753491010657,5.37756027,185.96,185.92,37.42]
[1753491014131,2.42522759,185.97,185.92,37.42]
[1753491015059,22.39159874,185.99,185.92,37.42]
[1753491015246,2.42522759,185.97,185.92,37.42]
[1753491016262,5.37750053,185.96,185.92,37.42]
[1753491016644,5.37750053,185.96,185.92,39.84522759]
[1753491016967,5.37750053,185.96,185.92,37.42]
[1753491018257,13.44158288,185.99,185.89,87.4]
[1753491018258,2.42522759,185.94,185.89,87.4]
[1753491018441,2.42522759,185.92,185.86,88.9463]
[1753491018637,2.42522759,185.89,185.84,87.4]
[1753491018870,2.42522759,185.89,185.82,1.5905]
[1753491018871,2.42522759,185.9,185.83,2.42522759]
[1753491019052,3.58016834,185.92,185.86,16.78468397]
[1753491019373,2.42522759,185.88,185.82,1.5905]
[1753491019664,2.42522759,185.87,185.82,1.5905]
[1753491019875,2.42522759,185.86,185.8,87.4]
[1753491020075,5.38126244,185.83,185.78,1.5905]
[1753491020376,2.42522759,185.86,185.8,2.42522759]
[1753491020576,7.80533196,185.87,185.81,28.42522759]
[1753491020751,5.38010437,185.87,185.82,2.42522759]
[1753491021265,5.38010437,185.87,185.82,19.20991156]
[1753491021589,7.80510322,185.88,185.82,19.20991156]
[1753491022050,2.42522759,185.88,185.82,19.20991156]
[1753491022250,2.42522759,185.88,185.82,24.5914088]
[1753491022989,13.44769626,185.91,185.86,2.42522759]
[1753491022990,5.3791852,185.91,185.86,2.42522759]
[1753491023186,7.8039366,185.92,185.86,2.42522759]
[1753491023480,8.95173207,185.92,185.87,2.42522759]
[1753491024269,8.95173207,185.92,185.86,2.42522759]
[1753491024797,8.95173207,185.92,185.86,3.79078621]
[1753491026384,12.74251828,185.92,185.86,3.79078621]
[1753491029378,12.74251828,185.92,185.85,118.78045654]
[1753491029587,12.74251828,185.92,185.86,3.79078621]
[1753491029993,12.74251828,185.92,185.85,113.4]
[1753491030304,12.74251828,185.92,185.86,3.79078621]
[1753491030597,9.16949522,185.92,185.86,3.79078621]
[1753491030793,9.16949522,185.92,185.85,113.4]
[1753491031135,12.74308334,185.92,185.85,117.19078621]
[1753491032599,9.16995854,185.91,185.85,117.19078621]
[1753491039314,5.37865748,185.92,185.85,117.19078621]
[1753491039514,3.79078621,185.91,185.85,117.19078621]
[1753491041323,9.16993041,185.91,185.85,117.19078621]
[1753491041606,5.3791442,185.91,185.86,3.79078621]
[1753491042781,9.16993041,185.91,185.86,3.79078621]
[1753491044892,2.42631522,185.91,185.86,2.42631522]
[1753491045702,5.37865748,185.92,185.86,2.42631522]
[1753491046007,7.8049727,185.92,185.86,2.42631522]
[1753491046799,5.37865748,185.92,185.87,2.42631522]
[1753491048606,39.84631522,185.93,185.87,2.42631522]
[1753491048607,5.37778972,185.95,185.87,2.42631522]
[1753491048801,39.84631522,185.94,185.87,2.42631522]
[1753491049009,3.57128551,185.93,185.87,2.42631522]
[1753491049702,5.37865748,185.92,185.87,2.42631522]
[1753491051413,0.7,185.91,185.87,2.42631522]
[1753491051620,0.7,185.91,185.88,0.68]
[1753491051914,6.07904134,185.91,185.88,0.68]
[1753491052614,5.37904134,185.91,185.88,0.68]
[1753491052793,5.37904134,185.91,185.87,2.42631522]
[1753491052994,5.37904134,185.91,185.89,0.68]
[1753491053712,0.7,185.9,185.86,144.71099919]
[1753491053899,0.7,185.9,185.87,0.68]
[1753491054799,6.0790974,185.91,185.88,0.68]
[1753491056490,5.3790974,185.91,185.86,144.03099919]
[1753491056698,0.7,185.9,185.87,0.68]
[1753491057820,5.3790974,185.91,185.86,144.03099919]
[1753491058128,6.0790974,185.91,185.88,0.68]
[1753491065023,0.7,185.9,185.87,0.68]
[1753491065928,5.37785542,185.95,185.89,19.21099919]
[1753491066224,6.07785542,185.95,185.9,40.52631522]
[1753491066393,6.07785542,185.95,185.91,3.10631522]
[1753491066600,6.07785542,185.95,185.91,2.42631522]
[1753491066801,6.07785542,185.95,185.92,0.68]
[1753491067219,5.37785542,185.95,185.91,2.42631522]
[1753491069418,9.36243434,185.96,185.91,2.42631522]
[1753491071734,9.36243434,185.96,185.91,87.93789468]
[1753491072032,5.37754511,185.96,185.92,2.42631522]
[1753491073218,5.37754511,185.96,185.92,16.78468397]
[1753491073534,5.37754511,185.96,185.92,19.21099919]
[1753491074305,5.37721137,185.97,185.92,19.21099919]
[1753491076234,5.37721137,185.97,185.92,16.78468397]
[1753491076531,2.42631522,185.95,185.9,37.42]
[1753491076720,2.42631522,185.94,185.9,16.78468397]
[1753491077109,2.42631522,185.94,185.89,16.78468397]
[1753491078110,2.42631522,185.95,185.89,19.21099919]
[1753491078316,5.37807895,185.94,185.89,19.21099919]
[1753491079138,5.37807895,185.94,185.9,2.42631522]
[1753491079628,5.37807895,185.94,185.89,19.21099919]
[1753491079934,7.80439417,185.94,185.89,56.61099919]
[1753491080341,7.80439417,185.94,185.89,19.21099919]
[1753491081252,5.37807895,185.94,185.89,19.21099919]
[1753491081426,2.42631522,185.95,185.89,19.21099919]
[1753491082341,5.37807895,185.94,185.89,19.21099919]
[1753491082718,5.37807895,185.94,185.89,106.61099919]
[1753491083858,5.37807895,185.94,185.9,2.42631522]
[1753491084146,5.37807895,185.94,185.89,104.18468397]
[1753491084356,5.37807895,185.94,185.9,2.42631522]
[1753491084844,2.42631522,185.93,185.88,37.4]
[1753491085944,5.37865748,185.92,185.88,37.4]
[1753491086615,5.37865748,185.92,185.88,39.82631522]
[1753491087941,5.3783682,185.93,185.88,39.82631522]
[1753491088145,5.3783682,185.93,185.88,37.4]
[1753491088450,5.3783682,185.93,185.88,39.82631522]
[1753491089113,6.0983682,185.93,185.89,0.67]
[1753491089317,5.3789468,185.91,185.89,0.67]
[1753491089918,5.3789468,185.91,185.88,37.4]
[1753491090127,6.0989468,185.91,185.88,38.07]
[1753491090445,5.37865748,185.92,185.89,0.67]
[1753491090650,6.09865748,185.92,185.89,0.67]
[1753491092044,5.37865748,185.92,185.89,0.67]
[1753491092453,5.37865748,185.92,185.9,0.67]
[1753491092634,5.37865748,185.92,185.88,39.82631522]
[1753491092635,6.09865748,185.92,185.89,0.67]
[1753491093027,5.37865748,185.92,185.89,3.09631522]
[1753491093230,5.37865748,185.92,185.89,0.67]
[1753491093544,6.09865748,185.92,185.89,0.67]
[1753491094657,6.09912991,185.91,185.88,87.4]
[1753491094946,6.09912991,185.91,185.88,88.07]
[1753491095423,5.37912991,185.91,185.88,87.4]
[1753491095630,5.37912991,185.91,185.89,0.67]
[1753491103856,5.37865748,185.92,185.88,89.82631522]
[1753491104061,0.66,185.91,185.88,90.54631522]
[1753491105163,6.03914265,185.91,185.88,90.54631522]
[1753491105659,6.03914265,185.91,185.88,88.12]
[1753491106074,0.66,185.9,185.88,87.4]
[1753491106229,0.66,185.89,185.88,87.4]
[1753491106434,0.66,185.9,185.88,87.4]
[1753491108861,0.66,185.9,185.88,88.12]
[1753491109569,5.37914265,185.91,185.88,88.12]
[1753491109742,0.66,185.91,185.88,88.12]
[1753491110140,0.66,185.91,185.89,0.72]
[1753491110337,8.96028471,185.93,185.89,0.72]
[1753491110540,5.37816346,185.94,185.9,2.42631522]
[1753491110737,5.37816346,185.94,185.91,0.72]
[1753491111241,5.37816346,185.94,185.92,0.72]
[1753491111440,0.66,185.93,185.9,0.72]
[1753491111755,0.66,185.93,185.9,3.14631522]
[1753491111946,6.03838488,185.93,185.9,3.14631522]
[1753491112271,6.03838488,185.93,185.9,90.54631522]
[1753491112458,6.03838488,185.93,185.91,0.72]
[1753491112655,5.37838488,185.93,185.91,0.72]
[1753491116944,6.03814018,185.94,185.91,0.72]
[1753491117145,5.37814018,185.94,185.9,90.36423883]
[1753491117367,5.37814018,185.94,185.92,0.72]
[1753491118711,6.03783514,185.95,185.92,0.72]
[1753491118871,3.58187682,185.96,185.93,0.72]
[1753491119075,0.66,185.96,185.93,0.72]
[1753491120083,6.03758347,185.96,185.93,0.72]
[1753491121477,6.03758347,185.96,185.92,1.25786574]
[1753491121478,0.66,185.95,185.92,1.25786574]
[1753491121978,0.66,185.94,185.92,0.53786574]
[1753491122848,0.66,185.94,185.92,1.25786574]
[1753491124080,0.66,185.94,185.92,88.65786574]
[1753491125291,0.66,185.95,185.92,88.65786574]
[1753491125978,6.03787568,185.95,185.92,88.65786574]
[1753491130810,6.03787568,185.95,185.93,0.71]
[1753491132409,6.03787568,185.95,185.92,87.93786574]
[1753491132594,6.03787568,185.95,185.92,88.64786574]
[1753491133310,5.37787568,185.95,185.93,0.71]
[1753491137090,0.69,185.95,185.93,0.71]
[1753491137712,6.06750053,185.96,185.93,0.71]
[1753491144516,6.06791739,185.95,185.92,88.11]
[1753491149218,2.42631522,185.95,185.92,87.4]
[1753491149427,2.42631522,185.93,185.92,87.4]
[1753491149609,3.11631522,185.93,185.92,87.4]
[1753491150714,0.69,185.93,185.92,87.4]
[1753491153708,5.37695568,185.98,185.95,0.71]
[1753491154019,0.69,185.97,185.95,0.71]
[1753491154222,0.69,185.97,185.94,40.51631522]
[1753491155915,2.42631522,186.0,185.94,39.80631522]
[1753491156120,3.58187682,186.02,185.95,23.41025266]
[1753491156308,0.69,186.03,185.98,2.42631522]
[1753491156510,0.69,186.03,185.99,37.38]
[1753491157110,5.37604232,186.02,185.99,37.38]
[1753491157308,0.69,186.03,185.99,37.38]
[1753491157309,5.37547707,186.03,185.99,37.38]
[1753491157506,0.69,186.01,185.99,37.38]
[1753491158024,6.06547707,186.03,185.99,40.51631522]
[1753491158215,5.37547707,186.03,185.99,38.09]
[1753491158418,0.71,186.02,185.99,38.09]
[1753491158608,0.71,186.02,185.99,40.51631522]
[1753491159126,4.47262419,186.11,186.01,2.42631522]
[1753491159319,5.37432149,186.07,186.03,2.42631522]
[1753491159516,6.08432149,186.07,186.03,3.09631522]
[1753491159720,5.37432149,186.07,186.04,2.42631522]
[1753491160027,4.69858392,186.08,186.04,37.38]
[1753491160205,0.71,186.12,186.07,2.42631522]
[1753491160396,0.71,186.11,186.08,0.67]
[1753491160828,0.71,186.11,186.08,3.09631522]
[1753491161127,6.08259929,186.13,186.09,0.67]
[1753491161314,5.37259929,186.13,186.1,0.67]
[1753491161696,5.37234709,186.14,186.11,0.67]
[1753491161908,6.08234709,186.14,186.11,0.67]
[1753491162209,6.08234709,186.14,186.09,40.47631522]
[1753491162415,6.08234709,186.14,186.1,0.67]
[1753491163231,5.37201181,186.15,186.11,3.78140802]
[1753491163430,5.37201181,186.15,186.12,0.67]
[1753491164210,5.37201181,186.15,186.12,38.03]
[1753491165016,5.37201181,186.15,186.12,37.36]
[1753491165218,5.37201181,186.15,186.13,0.67]
[1753491165533,6.08201181,186.15,186.12,37.36]
[1753491166831,6.08201181,186.15,186.12,38.03]
[1753491167333,3.78140802,186.13,186.1,37.36]
[1753491167537,3.78140802,186.11,186.08,37.36]
[1753491167921,0.71,186.1,186.08,37.36]
[1753491168513,0.71,186.1,186.07,88.07]
[1753491168514,6.08372835,186.1,186.07,88.07]
[1753491168723,6.08372835,186.1,186.07,125.43]
[1753491172247,4.49140802,186.12,186.07,125.43]
[1753491172535,0.71,186.11,186.08,0.67]
[1753491172747,4.49140802,186.14,186.09,0.67]
[1753491173049,4.49140802,186.14,186.09,38.03]
[1753491173347,4.49140802,186.14,186.1,0.67]
[1753491173546,4.49140802,186.14,186.11,0.67]
[1753491174139,5.37258905,186.13,186.11,0.67]
[1753491176636,5.37258905,186.13,186.1,37.34]
[1753491176842,6.08258905,186.13,186.1,37.34]
[1753491177142,6.08258905,186.13,186.1,38.01]
[1753491177332,6.08258905,186.13,186.1,37.34]
[1753491178646,5.37258905,186.13,186.1,37.34]
[1753491178817,9.86399707,186.13,186.1,37.34]
[1753491179144,4.49140802,186.12,186.1,37.34]
[1753491179324,3.78140802,186.12,186.1,37.34]
[1753491179522,0.71,186.11,186.1,37.34]
[1753491179722,4.49140802,186.12,186.1,37.34]
[1753491179919,0.71,186.12,186.08,88.07]
[1753491180246,0.71,186.12,186.09,37.34]
[1753491180635,6.083057,186.12,186.09,37.34]
[1753491181641,6.083057,186.12,186.09,38.01]
[1753491182327,3.78140802,186.1,186.08,124.74]
[1753491182529,4.49140802,186.1,186.08,124.74]
[1753491183137,4.49140802,186.1,186.08,37.34]
[1753491183656,9.86506599,186.1,186.08,37.34]
[1753491185558,6.08365797,186.1,186.08,37.34]
[1753491186535,5.37365797,186.1,186.08,37.34]
[1753491187565,5.37365797,186.1,186.08,38.01]
[1753491187927,5.37365797,186.1,186.09,0.67]
[1753491188829,5.37309085,186.12,186.09,0.67]
[1753491189232,5.37309085,186.12,186.08,124.74]
[1753491189442,5.37309085,186.12,186.1,0.7]
[1753491190141,5.37309085,186.12,186.11,0.7]
[1753491190354,5.37309085,186.12,186.09,0.7]
[1753491190560,9.15449887,186.12,186.08,124.74]
[1753491190732,0.7,186.11,186.08,125.44]
[1753491191763,5.37345513,186.1,186.08,125.44]
[1753491192854,5.3731664,186.11,186.08,125.44]
[1753491193564,5.3731664,186.11,186.09,0.7]
[1753491194338,5.3731664,186.11,186.08,124.74]
[1753491194572,5.3731664,186.11,186.08,125.44]
[1753491196863,5.3731664,186.11,186.09,37.34]
[1753491197166,4.48140802,186.1,186.06,37.34]
[1753491197342,3.78140802,186.07,186.05,37.34]
[1753491197543,4.48140802,186.07,186.05,37.34]
[1753491198871,3.78140802,186.06,186.05,37.34]
[1753491199166,4.48140802,186.07,186.04,87.4]
[1753491199360,4.48140802,186.07,186.05,37.34]
[1753491199557,3.78140802,186.07,186.05,37.34]
[1753491199969,3.78140802,186.07,186.05,38.04]
[1753491200177,9.15579189,186.07,186.05,38.04]
[1753491205348,3.78140802,186.06,186.05,38.04]
[1753491205550,9.85601836,186.06,186.01,0.7]
[1753491205751,9.85601836,186.06,186.02,37.36]
[1753491205752,3.78140802,186.03,186.02,37.36]
[1753491207464,9.15688509,186.03,186.02,37.36]
[1753491209484,9.15688509,186.03,186.01,0.7]
[1753491209485,5.37547707,186.03,186.01,38.06]
[1753491210789,9.15688509,186.03,186.01,38.06]
[1753491211678,9.15688509,186.03,186.01,87.4]
[1753491211886,4.48140802,186.02,186.01,87.4]
[1753491212184,3.78140802,186.02,186.0,37.36]
[1753491212487,3.78140802,186.02,186.0,38.06]
[1753491213176,5.37605505,186.01,186.0,38.06]
[1753491214184,5.37576604,186.02,185.97,16.78468397]
[1753491214385,9.15717406,186.02,185.98,0.7]
[1753491214888,9.15717406,186.02,185.99,37.42]
[1753491215187,9.15717406,186.02,185.99,38.12]
[1753491215402,9.15717406,186.02,186.0,0.7]
[1753491216477,9.15717406,186.02,185.99,38.12]